Workbook

Sheet DOCU_DCF
B2: Company Name | C2: DocuSign
B3: Ticker | C3: DOCU
B4: Share Price | C4: 51.19
B5: Valuation Date | C5: 2024-02-14
B7: =C2&" ("&C3&") DISCOUNTED CASH FLOWS MODEL" -> DocuSign (DOCU) DISCOUNTED CASH FLOWS MODEL
B8: Fiscal year ends in January USD in thousands except per share data.
A10: x | B10: FORECASTING CASH FLOWS
F12: Historical | K12: Projected
F13: 2019 | G13: =F13+1 -> 2020 | H13: 2021 | I13: 2022 | J13: 2023 | K13: 2024 | L13: 2025 | M13: 2026 | N13: 2027 | O13: 2028 | P13: 2029 | Q13: 2030
B14: Revenue - subscription
B15: Revenue - professional services & other revenue
B16: Total Revenue
B17: Cost of revenue - subscription
B18: Cost of revenue - professional services & other cost of revenue
B19: Gross Profit
B21: Sales & marketing expense
B22: Research & development expense
B23: General & administrative expense
B24: EBIT
B25: Taxes | D25: 0.25
B26: Tax-effected EBIT
B28: Depreciation and amortization
B29: Capex
B30: Change in Net Working Capital
B31: Unlevered free cash flows
F34: Historical | K34: Projected
F35: =F13 -> 2019 | G35: =F35+1 -> 2020 | H35: 2021 | I35: 2022 | J35: 2023 | K35: 2024 | L35: 2025 | M35: 2026 | N35: 2027 | O35: 2028 | P35: 2029 | Q35: 2030
B36: Assumptions
B37: Subscription Growth
B38: Professional Growth
B39: Sales Growth | T39: 2028
B40: COGS-subscription (as a % of subscription) | S40: Step
B41: COGS-professional (as a % of professional) | S41: Step
B42: Sales & Marketing (as a % of revenue) | S42: Step
B43: R&D expenses (as % of revenues) | S43: Step
B44: G&A (as a % of revenue) | S44: Step
B45: Capex (as % of revenues) | S45: Step
B46: Depreciation and amortization (as % of capex) | S46: Step
B47: Gross margin
A49: x | B49: TERMINAL VALUE AND EQUITY VALUE PER SHARE
F51: Terminal Value - Perpetuity Growth | K51: Terminal Value - Exit Multiple | P51: Option Drag
F53: Unlevered FCF in terminal year | K53: Terminal year EBITDA | P53: Implied Equity Value (Using TV)
F54: Terminal growth rate | K54: Terminal year EBITDA multiple | P54: Basic Shares
F55: Terminal value | K55: Terminal value | P55: Value of Options
F56: WACC - current | K56: WACC - current | P56: Implied Equity Value per Share
F57: PV of Terminal Value | K57: PV of Terminal Value
P58: Treasury Outstanding Options
F59: PV of Unlevered Free Cash Flows | K59: PV of Unlevered Free Cash Flows | P59: Implied Equity Value
F60: Total Enterprise Value | K60: Total Enterprise Value | P60: Diluted Shares Outstanding
F61: Net debt + Preferred stock + NCI | K61: Net debt + Preferred stock + NCI | P61: Total Proceeds
F62: Implied Equity Value | K62: Implied Equity Value | P62: Implied Equity Value per Share
F63: Diluted Shares Outstanding | K63: Diluted Shares Outstanding
F64: Implied Equity Value per Share | K64: Implied Equity Value per Share
A68: x | B68: WORKING CAPITAL SCHEDULE
F71: Historical | K71: Projected
F72: =F13 -> 2019 | G72: =F72+1 -> 2020 | H72: 2021 | I72: 2022 | J72: 2023 | K72: 2024 | L72: 2025 | M72: 2026 | N72: 2027 | O72: 2028 | P72: =O72+1 -> 2029 | Q72: =P72+1 -> 2030
B73: Total current assets
B74: Cash & cash equivalents
B75: Investments
B76: Total non-cash current assets
B78: Total current liabilities
B79: Convertible senior notes - current
B80: Operating lease liabilities-current
B81: Total non-debt current liabilities
B83: Non-cash Net Working Capital
B84: Change in NWC
F87: Historical | K87: Projected
F88: =F72 -> 2019 | G88: =F88+1 -> 2020 | H88: 2021 | I88: 2022 | J88: 2023 | K88: 2024 | L88: 2025 | M88: 2026 | N88: 2027 | O88: 2028 | P88: =O88+1 -> 2029 | Q88: =P88+1 -> 2030
B89: Non-cash NWC as a % of Sale | S89: Step | T89: -0.2 | U89: =(T89-K89)/(Q88-K88) -> -0.03333333333
A92: x | B92: DILUTED SHARES
F95: Treasury with a Twist- All Outstanding Options | K95: Treasury Method- All Outstanding Options
F96: Basic share count | K96: Basic share count
F97: Outstanding options | K97: Oustanding options
F98: Exercise price | K98: Exercise price
F99: Current share price | I99: =C4 -> 51.19
F100: In-the-money options
F101: Total proceeds | K101: Total proceeds
F102: Total shares repurchased
F103: Diluted shares outstanding | K103: Diluted shares outstanding
A106: x | B106: WACC
F108: Current
B109: Percent of Capital
B110: Total debt
B111: Share price | F111: =C4 -> 51.19
B112: Shares outstanding
B113: Market value of equity
B115: Weight of debt
B116: Weight of equity
B118: Cost of debt
B119: Pre-tax cost of debt
B120: Marginal tax rate
B122: Cost of equity
B123: Risk-free rate
B124: Market risk premium (Rm - Rf)
B125: Beta
B126: Cost of equity
B128: Weighted average cost of capital
A130: x | B130: BOTTOM UP BETA
E133: MV | F133: Book Value | G133: Debt/ | H133: Reg | I133: Unlevered | K133: Marginal
B134: Company | C134: Ticker | E134: Equity | F134: Debt | G134: Equity | H134: Beta | I134: Beta | K134: Tax Rate
B142: Average unlevered beta
B143: Average unlevered beta (Full industry)
B144: =C3&" Debt/Equity ratio" -> DOCU Debt/Equity ratio
B145: =C3&" Tax Rate" -> DOCU Tax Rate
B146: =C3&" Levered Beta" -> DOCU Levered Beta
A148: x | B148: SENSITIVITY ANALYSIS

Sheet DOCU_Forecast
B2: Key metrics (Annual)
C3: 2019 | D3: =C3+1 -> 2020 | E3: =D3+1 -> 2021 | F3: 2022 | G3: 2023 | H3: 2024 | I3: 2025 | J3: 2026 | K3: 2027 | L3: 2028
B4: Revenue | C4: 700969 | D4: 973971 | E4: 1453047 | F4: 2107213 | G4: 2515915 | H4: 2746000 | I4: =H4*(1+I8) -> 2938220 | J4: =I4*(1+J8) -> 3158586.5 | K4: =J4*(1+K8) -> 3411273.42 | L4: =K4*(1+L8) -> 3684175.294
B5: Direct (%) | C5: 0.85 | D5: 0.86 | E5: 0.87 | F5: 0.88 | G5: 0.87 | H5: 0.86 | I5: 0.855 | J5: =I5 -> 0.855 | K5: 0.855 | L5: 0.855
B6: Digital (%) | C6: 0.15 | D6: 0.14 | E6: 0.13 | F6: 0.12 | G6: 0.13 | H6: 0.14 | I6: 0.145 | J6: 0.145 | K6: 0.145 | L6: 0.145
B8: Revenue growth | H8: =H4/G4-1 -> 0.09145181773 | I8: 0.07 | J8: 0.075 | K8: 0.08 | L8: 0.08
B10: Subscription Revenue | C10: 663657 | D10: 918463 | E10: 1381397 | F10: 2037272 | G10: 2442177 | H10: 2670000 | I10: =I4*I11 -> 2864764.5 | J10: =J4*J11 -> 3079621.837 | K10: =K4*K11 -> 3325991.585 | L10: =L4*L11 -> 3592070.911
B11: % of revenue | C11: =C10/C4 -> 0.9467708272 | D11: =D10/D4 -> 0.9430085701 | E11: 0.9506898263 | F11: 0.9668087659 | G11: 0.9706913787 | H11: 0.975 | I11: 0.975 | J11: 0.975 | K11: 0.975 | L11: 0.975
B12: % growth | H12: =H10/G10-1 -> 0.09328685022 | I12: =I10/H10-1 -> 0.07294550562 | J12: =J10/I10-1 -> 0.075 | K12: =K10/J10-1 -> 0.08 | L12: =L10/K10-1 -> 0.08
B13: Professional Revenue | G13: =G4-G10 -> 73738 | H13: 76000 | I13: 73455.5 | J13: 78964.6625 | K13: 85281.8355 | L13: 92104.38234
B14: % growth | H14: =H13/G13-1 -> 0.03067617782 | I14: =I13/H13-1 -> -0.03348026316 | J14: =J13/I13-1 -> 0.075 | K14: =K13/J13-1 -> 0.08 | L14: =L13/K13-1 -> 0.08
B16: Customers (in thousands) | C16: 477 | D16: 589 | E16: 892 | F16: 1170 | G16: 1360 | H16: =G16*(1+H17) -> 1536.8 | I16: =H16*(1+I17) -> 1713.532 | J16: =I16*(1+J17) -> 1867.74988 | K16: =J16*(1+K17) -> 2017.16987 | L16: =K16*(1+L17) -> 2158.371761
B17: % growth | D17: =D16/C16-1 -> 0.2348008386 | E17: =E16/D16-1 -> 0.5144312394 | F17: =F16/E16-1 -> 0.3116591928 | G17: =G16/F16-1 -> 0.1623931624 | H17: 0.13 | I17: 0.115 | J17: 0.09 | K17: 0.08 | L17: 0.07
B18: Enterprise | C18: 56 | D18: 75 | E18: 125 | F18: 170 | G18: 211 | H18: =G18*(1+H19) -> 242.65 | I18: =H18*(1+I19) -> 274.1945 | J18: =I18*(1+J19) -> 301.61395 | K18: =J18*(1+K19) -> 327.2511358 | L18: =K18*(1+L19) -> 351.7949709
B19: % growth | D19: =D18/C18-1 -> 0.3392857143 | E19: =E18/D18-1 -> 0.6666666667 | F19: =F18/E18-1 -> 0.36 | G19: =G18/F18-1 -> 0.2411764706 | H19: 0.15 | I19: 0.13 | J19: 0.1 | K19: 0.085 | L19: 0.075
B20: Small | C20: =C16-C18 -> 421 | D20: 514 | E20: 767 | F20: 1000 | G20: 1149 | H20: 1294.15 | I20: 1439.3375 | J20: 1566.13593 | K20: 1689.918735 | L20: 1806.57679
B21: % growth | D21: =D20/C20-1 -> 0.2209026128 | E21: 0.4922178988 | F21: 0.3037809648 | G21: 0.149 | H21: 0.1263272411 | I21: 0.1121875362 | J21: 0.08809499509 | K21: 0.07903707608 | L21: 0.06903175481
B23: Large (>300k) | C23: 310 | D23: 437 | E23: 599 | F23: 852 | G23: 1080 | H23: =G23*(1+H24) -> 1069.2 | I23: =H23*(1+I24) -> 1101.276 | J23: =I23*(1+J24) -> 1156.3398 | K23: =J23*(1+K24) -> 1214.15679 | L23: =K23*(1+L24) -> 1274.86463
B24: % growth | D24: =D23/C23-1 -> 0.4096774194 | E24: =E23/D23-1 -> 0.3707093822 | F24: =F23/E23-1 -> 0.4223706177 | G24: =G23/F23-1 -> 0.2676056338 | H24: -0.01 | I24: 0.03 | J24: 0.05 | K24: 0.05 | L24: 0.05
B26: Enterprise/Direct ARPC | C26: =(C4*C5)/C18 -> 10639.70804 | D26: 11168.2008 | E26: 10113.20712 | F26: 10907.92612 | G26: 10373.67796 | H26: 9732.371729 | I26: 9162.029508 | J26: 8953.801565 | K26: 8912.539807 | L26: 8953.99348
B27: Digital ARPC | C27: =(C4*C6)/C20 -> 249.7514252 | D27: 265.28393 | E27: 246.2791525 | F27: 252.86556 | G27: 284.655309 | H27: 297.0598462 | I27: 295.9986105 | J27: =(J4*J6)/J20 -> 292.4363293 | K27: =(K4*K6)/K20 -> 292.6972971 | L27: =(L4*L6)/L20 -> 295.7003657
B31: S&M | C31: 539606 | D31: 591379 | E31: 798625 | F31: 1076527 | G31: 1242711 | H31: =H4*H32 -> 1235700 | I31: =I4*I32 -> 1248743.5 | J31: =J4*J32 -> 1263434.6 | K31: =K4*K32 -> 1279227.533 | L31: =L4*L32 -> 1289461.353
B32: S&M margin | C32: =C31/C4 -> 0.769800091 | D32: =D31/D4 -> 0.6071833761 | E32: =E31/E4 -> 0.5496209001 | F32: =F31/F4 -> 0.5108771633 | G32: =G31/G4 -> 0.4939399781 | H32: 0.45 | I32: 0.425 | J32: 0.4 | K32: 0.375 | L32: 0.35
B33: CAC (all) | D33: =D31/(D16-C16) -> 5280.169643 | E33: =E31/(E16-D16) -> 2635.726073 | F33: 3872.399281 | G33: 6540.584211 | H33: 6989.253394 | I33: 7065.746441 | J33: 8192.529945 | K33: =K31/(K16-J16) -> 8561.287744 | L33: =L31/(L16-K16) -> 9132.04026
B34: CAC (enterprise) | D34: =D31*D5/(D18-C18) -> 26767.68105 | E34: 13896.075 | F34: 21052.08356 | G34: 26369.72122 | H34: 33576.68246 | I34: 33846.65132 | J34: 39396.72689 | K34: 42662.23099 | L34: =L31*L5/(L18-K18) -> 44919.20062
B35: CAC (small) | D35: =D31*D6/(D20-C20) -> 890.247957 | E35: 410.3606719 | F35: 554.4345064 | G35: 1084.244497 | H35: 1191.8567 | I35: 1247.130831 | J35: 1444.797203 | K35: 1498.495633 | L35: =L31*L6/(L20-K20) -> 1602.734547
B37: International Revenue (%) | E37: 0.2 | F37: 0.23 | G37: 0.25
B40: Key Metric (Quarterely)
C41: FY22 | D41: FY22 | E41: FY22 | F41: FY22 | G41: FY23 | H41: FY23 | I41: FY23 | J41: FY23 | K41: FY24 | L41: FY24 | M41: FY24
C42: Q1 | D42: Q2 | E42: Q3 | F42: Q4 | G42: Q1 | H42: Q2 | I42: Q3 | J42: Q4 | K42: Q1 | L42: Q2 | M42: Q3 | N42: Q4low | O42: Q4high
B43: Dollar Net Retention | C43: 1.25 | D43: 1.24 | E43: 1.21 | F43: 1.19 | G43: 1.14 | H43: 1.1 | I43: 1.08 | J43: 1.07 | K43: 1.05 | L43: 1.02 | M43: 1
B44: Billings ($) | C44: 527 | D44: 595 | E44: 565 | F44: 670 | G44: 614 | H44: 648 | I44: 659 | J44: 739 | K44: 675 | L44: 711 | M44: 692 | N44: 758 | O44: 768
B45: Billings (Y/Y growth) | G45: =G44/C44-1 -> 0.165085389 | H45: 0.08907563025 | I45: 0.1663716814 | J45: 0.1029850746 | K45: 0.0993485342 | L45: 0.09722222222 | M45: =M44/I44-1 -> 0.05007587253
B46: Employees | C46: 6080 | D46: 6551 | E46: 7056 | F46: 7461 | G46: 7642 | H46: 8061 | I46: 7522 | J46: 7336 | K46: 6586 | L46: 6748 | M46: 6945 | N46: 6500
D47: =D46/C46-1 -> 0.07746710526 | E47: =E46/D46-1 -> 0.07708746756 | F47: 0.05739795918 | G47: 0.02425948264 | H47: 0.05482857891 | I47: -0.06686515321 | J47: -0.0247274661 | K47: -0.1022355507 | L47: 0.02459763134 | M47: 0.02919383521 | N47: -0.06407487401

Sheet DOCU_IS
A4: Powered by Clearbit
A5: DocuSign Inc (NMS: DOCU)
A7: Exchange rate used is that of the Year End reported date
A10: As Reported Annual Income Statement | B10: =YEAR(B11) -> 2023 | C10: =YEAR(C11) -> 2022 | D10: =YEAR(D11) -> 2021 | E10: =YEAR(E11) -> 2020 | F10: =YEAR(F11) -> 2019
A11: Report Date | B11: 01/31/2023 | C11: 01/31/2022 | D11: 01/31/2021 | E11: 01/31/2020 | F11: 01/31/2019
A12: Currency | B12: USD | C12: USD | D12: USD | E12: USD | F12: USD
A13: Audit Status | B13: Not Qualified | C13: Not Qualified | D13: Not Qualified | E13: Not Qualified | F13: Not Qualified
A14: Consolidated | B14: Yes | C14: Yes | D14: Yes | E14: Yes | F14: Yes
A15: Scale | B15: Thousands | C15: Thousands | D15: Thousands | E15: Thousands | F15: Thousands
A16: Revenue - subscription | B16: 2442177 | C16: 2037272 | D16: 1381397 | E16: 918463 | F16: 663657
A17: Revenue - professional services & other revenue | B17: 73738 | C17: 69941 | D17: 71650 | E17: 55508 | F17: 37312
A18: Total revenue | B18: 2515915 | C18: 2107213 | D18: 1453047 | E18: 973971 | F18: 700969
A19: Cost of revenue - subscription | B19: 426077 | C19: 343661 | D19: 259992 | E19: 163931 | F19: 117764
A20: Cost of revenue - professional services & other cost of revenue | B20: 110011 | C20: 122790 | D20: 104066 | E20: 79303 | F20: 74657
A21: Total cost of revenue | B21: 536088 | C21: 466451 | D21: 364058 | E21: 243234 | F21: 192421
A22: Gross profit | B22: 1979827 | C22: 1640762 | D22: 1088989 | E22: 730737 | F22: 508548
A23: Sales & marketing expense | B23: 1242711 | C23: 1076527 | D23: 798625 | E23: 591379 | F23: 539606
A24: Research & development expense | B24: 480584 | C24: 393362 | D24: 271522 | E24: 185552 | F24: 185968
A25: General & administrative expense | B25: 316228 | C25: 232757 | D25: 192697 | E25: 147315 | F25: 209297
A26: Restructuring & other related charges | B26: 28335 | C26: - | D26: - | E26: - | F26: -
A27: Total operating expenses | B27: 2067858 | C27: 1702646 | D27: 1262844 | E27: 924246 | F27: 934871
A28: Income (loss) from operations | B28: -88031 | C28: -61884 | D28: -173855 | E28: -193509 | F28: -426323
A29: Interest expense | B29: 6389 | C29: 6443 | D29: 30799 | E29: 29254 | F29: 10844
A30: Gain (loss) on extinguishment of debt | B30: - | C30: - | D30: -33752 | E30: - | F30: -
A31: Interest income & other income (expense), net | B31: 4539 | C31: 1413 | D31: 8914 | E31: 19207 | F31: 8959
A32: Income before income taxes - U.S. | B32: 19673 | C32: -93356 | D32: -240175 | E32: -228476 | F32: -460627
A33: Income before income taxes - international | B33: -109554 | C33: 26442 | D33: 10683 | E33: 24920 | F33: 32419
A34: Income (loss) before provision for (benefit from) income taxes | B34: -89881 | C34: -66914 | D34: -229492 | E34: -203556 | F34: -428208
A35: Current federal income taxes | B35: -464 | C35: -931 | D35: -35 | E35: - | F35: -
A36: Current state income taxes | B36: 1666 | C36: -108 | D36: 269 | E36: 239 | F36: 413
A37: Current foreign income taxes | B37: 4674 | C37: 3407 | D37: 15951 | E37: 3277 | F37: 2838
A38: Current income taxes | B38: 5876 | C38: 2368 | D38: 16185 | E38: 3516 | F38: 3251
A39: Deferred federal income taxes | B39: 21 | C39: 213 | D39: -243 | E39: - | F39: -7083
A40: Deferred state income taxes | B40: -21 | C40: 184 | D40: 5 | E40: -43 | F40: -2
A41: Deferred foreign income taxes | B41: 1697 | C41: 297 | D41: -2172 | E41: 1330 | F41: 2084
A42: Deferred income taxes | B42: 1697 | C42: 694 | D42: -2410 | E42: 1287 | F42: -5001
A43: Provision for (benefit from) income taxes | B43: 7573 | C43: 3062 | D43: 13775 | E43: 4803 | F43: -1750
A44: Net income (loss) | B44: -97454 | C44: -69976 | D44: -243267 | E44: -208359 | F44: -426458
A45: Less: preferred stock accretion | B45: - | C45: - | D45: - | E45: - | F45: 353
A46: Net income (loss) attributable to common stockholders | B46: -97454 | C46: -69976 | D46: -243267 | E46: -208359 | F46: -426811
A47: Weighted average shares outstanding - basic | B47: 200903 | C47: 196675 | D47: 185760 | E47: 176704 | F47: 135163
A48: Weighted average shares outstanding - diluted | B48: 200903 | C48: 196675 | D48: 185760 | E48: 176704 | F48: 135163
A49: Year end shares outstanding | B49: 201904 | C49: 198834 | D49: 192807 | E49: 181254 | F49: 169303
A50: Net earnings (loss) per share - basic | B50: -0.49 | C50: -0.36 | D50: -1.31 | E50: -1.18 | F50: -3.16
A51: Net earnings (loss) per share - diluted | B51: -0.49 | C51: -0.36 | D51: -1.31 | E51: -1.18 | F51: -3.16
A52: Total number of employees | B52: 7336 | C52: 7461 | D52: 5630 | E52: 3909 | F52: 3023
A53: Number of common stockholders | B53: 78 | C53: 73 | D53: 104 | E53: 115 | F53: 248
A54: Foreign currency translation adjustments | B54: -15336 | C54: -7935 | D54: 7468 | E54: - | F54: -
A57: For Model
A58: Depreciation and amortization
A59: Capex

Sheet DOCU_BS
A4: Powered by Clearbit
A5: DocuSign Inc (NMS: DOCU)
A7: Exchange rate used is that of the Year End reported date
A10: As Reported Annual Balance Sheet | B10: =YEAR(B11) -> 2023 | C10: =YEAR(C11) -> 2022 | D10: =YEAR(D11) -> 2021 | E10: =YEAR(E11) -> 2020 | F10: =YEAR(F11) -> 2019
A11: Report Date | B11: 01/31/2023 | C11: 01/31/2022 | D11: 01/31/2021 | E11: 01/31/2020 | F11: 01/31/2019
A12: Currency | B12: USD | C12: USD | D12: USD | E12: USD | F12: USD
A13: Audit Status | B13: Not Qualified | C13: Not Qualified | D13: Not Qualified | E13: Not Qualified | F13: Not Qualified
A14: Consolidated | B14: Yes | C14: Yes | D14: Yes | E14: Yes | F14: Yes
A15: Scale | B15: Thousands | C15: Thousands | D15: Thousands | E15: Thousands | F15: Thousands
A16: Cash & cash equivalents | B16: 721895 | C16: 509059 | D16: 566055 | E16: 241203 | F16: 517811
A17: Investments | B17: 309771 | C17: 293763 | D17: 207450 | E17: 414939 | F17: 251203
A18: Restricted cash | B18: - | C18: - | D18: - | E18: 280 | F18: 367
A19: Accounts receivable, gross | B19: 522925 | C19: 446757 | D19: 328932 | E19: 240841 | F19: 175148
A20: Allowance for doubtful accounts | B20: 6011 | C20: 5807 | D20: 5362 | E20: 3000 | F20: 600
A21: Accounts receivable, net | B21: 516914 | C21: 440950 | D21: 323570 | E21: 237841 | F21: 174548
A22: Contract assets - current | B22: 12437 | C22: 12588 | D22: 16883 | E22: 12502 | F22: 10616
A23: Prepaid expenses | B23: - | C23: - | D23: - | E23: 24429 | F23: 18415
A24: Other current assets | B24: - | C24: - | D24: - | E24: 12696 | F24: 11561
A25: Prepaid expenses & other current assets | B25: 69987 | C25: 63236 | D25: 48390 | E25: 37125 | F25: 29976
A26: Total current assets | B26: 1631004 | C26: 1319596 | D26: 1162348 | E26: 943890 | F26: 984521
A27: Investments - noncurrent | B27: 186049 | C27: 94938 | D27: 92717 | E27: 239729 | F27: 164220
A28: Computer & network equipment | B28: 138869 | C28: 127799 | D28: 102163 | E28: 66937 | F28: 55233
A29: Software, including capitalized software development costs | B29: 114524 | C29: 82537 | D29: 56858 | E29: 33373 | F29: 27959
A30: Furniture & office equipment | B30: 20897 | C30: 20939 | D30: 21682 | E30: 16752 | F30: 9511
A31: Leasehold improvements | B31: 73415 | C31: 79811 | D31: 79892 | E31: 59564 | F31: 41464
A32: Total property & equipment, gross | B32: 347705 | C32: 311086 | D32: 260595 | E32: 176626 | F32: 134167
A33: Less: accumulated depreciation | B33: 210781 | C33: 170261 | D33: 121029 | E33: 81228 | F33: 66479
A34: Work in progress | B34: 62968 | C34: 43839 | D34: 25473 | E34: 32895 | F34: 8144
A35: Property & equipment, net | B35: 199892 | C35: 184664 | D35: 165039 | E35: 128293 | F35: 75832
A36: Operating lease right-of-use assets | B36: 141493 | C36: 126021 | D36: 159352 | E36: 149833 | F36: -
A37: Goodwill | B37: 353619 | C37: 355058 | D37: 350151 | E37: 194882 | F37: 195225
A38: Intangible assets, net | B38: 70280 | C38: 98816 | D38: 121828 | E38: 56500 | F38: 74203
A39: Deferred contract acquisition costs - noncurrent | B39: 350899 | C39: 311835 | D39: 260130 | E39: 153333 | F39: 112583
A40: Other assets - noncurrent | B40: 79484 | C40: 50337 | D40: 24942 | E40: 24678 | F40: 8833
A41: Total assets | B41: 3012720 | C41: 2541265 | D41: 2336507 | E41: 1891138 | F41: 1615417
A42: Accounts payable | B42: 24393 | C42: 52804 | D42: 37367 | E42: 28144 | F42: 19590
A43: Accrued expenses | B43: - | C43: - | D43: - | E43: - | F43: 21755
A44: Deferred rent-current | B44: - | C44: - | D44: - | E44: - | F44: 2452
A45: Accrued expenses | B45: - | C45: - | D45: - | E45: 39350 | F45: -
A46: Other current liabilities | B46: - | C46: - | D46: - | E46: 14994 | F46: -
A47: Accrued expenses & other current liabilities | B47: 100987 | C47: 91377 | D47: 66566 | E47: 54344 | F47: -
A48: Accrued compensation | B48: 163133 | C48: 160163 | D48: 156158 | E48: 83189 | F48: 77553
A49: Convertible senior notes - current | B49: 722887 | D49: 20469
A50: Contract liabilities-current | B50: 1172867 | C50: 1029891 | D50: 779642 | E50: 507560 | F50: 381060
A51: Operating lease liabilities-current | B51: 24055 | C51: 37404 | D51: 32971 | E51: 20728
A52: Other liabilities - current | B52: - | C52: - | D52: - | E52: - | F52: 13903
A53: Total current liabilities | B53: 2208322 | C53: 1371639 | D53: 1093173 | E53: 693965 | F53: 516313
A54: Convertible senior notes, net - noncurrent | B54: - | C54: 718487 | D54: 693219 | E54: 465321 | F54: 438932
A55: Contract liabilities - noncurrent | B55: 16925 | C55: 16725 | D55: 16492 | E55: 11478 | F55: 7712
A56: Operating lease liabilities-noncurrent | B56: 141348 | C56: 126340 | D56: 165704 | E56: 162432 | F56: -
A57: Deferred rent - noncurrent | B57: - | C57: - | D57: - | E57: - | F57: 24195
A58: Deferred tax liability - noncurrent | B58: 10723 | C58: 9316 | D58: 6464 | E58: 4920 | F58: 4207
A59: Other liabilities - noncurrent | B59: 18115 | C59: 23255 | D59: 32328 | E59: 6695 | F59: 9696
A60: Total liabilities | B60: 2395433 | C60: 2265762 | D60: 2007380 | E60: 1344811 | F60: 1001055
A61: Convertible senior notes | B61: - | C61: - | D61: 3390 | E61: - | F61: -
A62: Common stock | B62: 20 | C62: 20 | D62: 19 | E62: 18 | F62: 17
A63: Treasury stock, at cost | B63: 1785 | C63: 1532 | D63: 1048 | E63: - | F63: -
A64: Additional paid-in capital | B64: 2240732 | C64: 1720013 | D64: 1702254 | E64: 1685167 | F64: 1545088
A65: Accumulated other comprehensive income (loss) | B65: -22996 | C65: -4809 | D65: 4964 | E65: -1673 | F65: -1965
A66: Retained earnings (accumulated deficit) | B66: -1598684 | C66: -1438189 | D66: -1380452 | E66: -1137185 | F66: -928778
A67: Total stockholders' equity (deficit) | B67: 617287 | C67: 275503 | D67: 325737 | E67: 546327 | F67: 614362

Sheet DOCU_CFS
A4: Powered by Clearbit
A5: DocuSign Inc (NMS: DOCU)
A7: Exchange rate used is that of the Year End reported date
A10: As Reported Annual Cash Flow
A11: Report Date | B11: 01/31/2023 | C11: 01/31/2022 | D11: 01/31/2021 | E11: 01/31/2020 | F11: 01/31/2019
A12: Currency | B12: USD | C12: USD | D12: USD | E12: USD | F12: USD
A13: Audit Status | B13: Not Qualified | C13: Not Qualified | D13: Not Qualified | E13: Not Qualified | F13: Not Qualified
A14: Consolidated | B14: Yes | C14: Yes | D14: Yes | E14: Yes | F14: Yes
A15: Scale | B15: Thousands | C15: Thousands | D15: Thousands | E15: Thousands | F15: Thousands
A16: Net income (loss) | B16: -97454 | C16: -69976 | D16: -243267 | E16: -208359 | F16: -426458
A17: Depreciation & amortization expense | B17: 86255 | C17: 81913 | D17: 71090 | E17: 50182 | F17: 38027
A18: Amortization of deferred contract acquisition & fulfillment costs | B18: 185045 | C18: 144442 | D18: 99384 | E18: 69747 | F18: 42112
A19: Amortization of debt discount & transaction costs | B19: 4970 | C19: 5098 | D19: 28001 | E19: 26389 | F19: 9507
A20: Loss (gain) on extinguishment of debt | B20: - | C20: - | D20: 33752 | E20: - | F20: -
A21: Operating cash flow related to repayments of convertible senior notes | B21: - | C21: - | D21: -75165 | E21: - | F21: -
A22: Non-cash operating lease costs | B22: 27501 | C22: 26819 | D22: 26728 | E22: 19435 | F22: -
A23: Stock-based compensation expense | B23: 538726 | C23: 408542 | D23: 286877 | E23: 206404 | F23: 410978
A24: Deferred income taxes | B24: 1697 | C24: 1369 | D24: -2410 | E24: 1287 | F24: -5001
A25: Other adjustments | B25: 15723 | C25: 9871 | D25: -210 | E25: -1741 | F25: 800
A26: Accounts receivable | B26: -75964 | C26: -117380 | D26: -73913 | E26: -63293 | F26: -42571
A27: Contract assets | B27: - | C27: 4893 | D27: 1912 | E27: -1508 | F27: 4204
A28: Prepaid expenses & other current assets | B28: -5038 | C28: -7074 | D28: -1155 | E28: -3142 | F28: -3283
A29: Deferred contract acquisition & fulfillment costs | B29: -232315 | C29: -207393 | D29: -208510 | E29: -115723 | F29: -80869
A30: Other assets | B30: -22319 | C30: -16389 | D30: -6006 | E30: 1538 | F30: 2658
A31: Accounts payable | B31: -26440 | C31: 12148 | D31: 12128 | E31: 3849 | F31: -7380
A32: Accrued expenses & other liabilities | B32: 7340 | C32: 10828 | D32: 37155 | E32: 9353 | F32: -
A33: Accrued expenses | B33: - | C33: - | D33: - | E33: - | F33: 4214
A34: Accrued compensation | B34: -1781 | C34: 1128 | D34: 64586 | E34: 5636 | F34: 26039
A35: Contract liabilities | B35: 143177 | C35: 250482 | D35: 267750 | E35: 130266 | F35: 100874
A36: Operating lease liabilities | B36: -42364 | C36: -32854 | D36: -21773 | E36: -14624 | F36: -
A37: Deferred rent | B37: - | C37: - | D37: - | E37: - | F37: 1845
A38: Other liabilities | B38: - | C38: - | D38: - | E38: - | F38: 390
A39: Net cash flows from operating activities | B39: 506759 | C39: 506467 | D39: 296954 | E39: 115696 | F39: 76086
A40: Cash paid for acquisition, net of acquired cash | B40: - | C40: -6388 | D40: -180370 | E40: - | F40: -218779
A41: Purchases of marketable securities | B41: -533710 | C41: -384128 | D41: -164989 | E41: -861252 | F41: -
A42: Sales of marketable securities | B42: - | C42: 7569 | D42: 28986 | E42: - | F42: -
A43: Maturities of marketable securities | B43: 423917 | C43: 283184 | D43: 488538 | E43: 627309 | F43: -
A44: Purchases of strategic investments | B44: -3750 | C44: -1750 | D44: -5300 | E44: -15500 | F44: -
A45: Purchases of other investments | B45: - | C45: - | D45: -3241 | E45: - | F45: -415132
A46: Purchases of property & equipment | B46: -77654 | C46: -61396 | D46: -82395 | E46: -72046 | F46: -30413
A47: Net cash flows from investing activities | B47: -191197 | C47: -162909 | D47: 81229 | E47: -321489 | F47: -664324
A48: Proceeds from issuance of convertible senior notes, net of initial purchasers' discounts & transaction costs | B48: - | C48: - | D48: 677370 | E48: - | F48: 560756
A49: Purchase of capped calls related to issuance of convertible senior notes | B49: - | C49: - | D49: -31395 | E49: - | F49: -67563
A50: Repayments of convertible senior notes | B50: -16 | C50: -77906 | D50: -384199 | E50: - | F50: -
A51: Repurchases of common stock | B51: -63041 | C51: - | D51: - | E51: - | F51: -
A52: Payment of revolving credit facility costs | B52: - | C52: - | D52: -2453 | E52: - | F52: -
A53: Proceeds from issuance of common stock in initial public offering, net of underwriting commissions | B53: - | C53: - | D53: - | E53: - | F53: 529305
A54: Payment of tax withholding obligation on RSU settlement | B54: - | C54: - | D54: - | E54: -166504 | F54: -215332
A55: Payment of tax withholding obligation on restricted stock units settlement & employee stock purchase plan purchase | B55: -84403 | C55: -386521 | D55: -372463 | E55: - | F55: -
A56: Proceeds from the exercise of stock options | B56: 12678 | C56: 23729 | D56: 24305 | E56: 72177 | F56: 50211
A57: Proceeds from employee stock purchase plan | B57: 36526 | C57: 46077 | D57: 29859 | E57: 23872 | F57: -
A58: Payment of deferred offering costs | B58: - | C58: - | D58: - | E58: - | F58: -4011
A59: Other financing | B59: - | C59: - | D59: - | E59: - | F59: -250
A60: Net cash flows from financing activities | B60: -98256 | C60: -394621 | D60: -58976 | E60: -70455 | F60: 853116
A61: Effect of foreign exchange on cash, cash equivalents & restricted cash | B61: -3784 | C61: -5594 | D61: 5646 | E61: -447 | F61: -4136
A62: Net increase (decrease) in cash, cash equivalents & restricted cash | B62: 213522 | C62: -56657 | D62: 324853 | E62: -276695 | F62: 260742
A63: Cash, cash equivalents & restricted cash at beginning of period | B63: 509679 | C63: 566336 | D63: 241483 | E63: 518178 | F63: 257436
A64: Cash, cash equivalents & restricted cash at end of period | B64: 723201 | C64: 509679 | D64: 566336 | E64: 241483 | F64: 518178
A65: Cash paid for interest | B65: 185 | C65: 349 | D65: 78040 | E65: 2852 | F65: 204
A66: Cash paid for income taxes | B66: 10416 | C66: 6940 | D66: 3503 | E66: 1970 | F66: 3213

Sheet _Comps
B2: =DOCU_DCF!C2&"Valuation with Public Comparables" -> DocuSignValuation with Public Comparables
B3: =DOCU_DCF!B8 -> Fiscal year ends in January USD in thousands except per share data.
B4: Valuation for period ended
B5: Ticker | C5: =DOCU_DCF!C3 -> DOCU
B6: Valuation Date
B7: Company Name | C7: =DOCU_DCF!C2 -> DocuSign | H7: Enterprise Value Multiples | N7: Equity Value Multiples
F8: Market Value | G8: Enterprise | K8: Forward | L8: 5 year growth | M8: BV | N8: Forward | O8: Forward | P8: Price(Market)- | Q8: Cash/MS as
B9: Company | C9: Ticker | D9: Share price | F9: of Equity | G9: Value | H9: EV/Sales | I9: EV/EBIT | J9: EV/EBITDA | K9: EPS | L9: rate | M9: Equity | N9: P/E | O9: PEG | P9: to-Book | Q9: % of TA
B10: =DOCU_DCF!C2 -> DocuSign | C10: =C5 -> DOCU | D10: =DOCU_DCF!C4 -> 51.19
G19: High
G20: Mean
G21: Median
G22: Low
D25: Implied price per share | E25: Diluted shares outstanding | F25: Implied Equity Value | G25: Implied Enterprise Value | H25: Range of EV/Sales | I25: Range of EV/EBIT | J25: Range of EV/EBITDA | N25: Range of Forward P/E | O25: Range of Forward PEG | P25: Range of Price-to-Book | Q25: Excess Cash
B26: =DOCU_DCF!C2 -> DocuSign

Sheet Option_Value
B2: Valuing Options or Warrants
B3: Enter the current stock price =
B4: Enter the strike price on the option =
B5: Enter the expiration of the option =
B6: Enter the standard deviation in stock prices = | F6: (volatility)
B7: Enter the annualized dividend yield on stock =
B8: Enter the treasury bond rate =
B9: Enter the number of options outstanding =
B10: Enter the number of shares outstanding =
B12: Circuit Breaker | C12: OFF
B14: Do not input any numbers below this line
B15: VALUING WARRANTS WHEN THERE IS DILUTION
B16: Stock Price= | D16: =E3 -> 0 | E16: # Warrants issued= | G16: =E9 -> 0
B17: Strike Price= | D17: =E4 -> 0 | E17: # Shares outstanding= | G17: =E10 -> 0
B18: Adjusted S = | D18: =(D16*G17+D29*G16)/(G17+G16) ->  | E18: T.Bond rate= | G18: =E8 -> 0
B19: Adjusted K = | D19: =D17 -> 0 | E19: Variance= | G19: =E6^2 -> 0
B20: Expiration (in years) = | D20: =E5 -> 0 | E20: Annualized dividend yield= | G20: =E7 -> 0
E21: Div. Adj. interest rate= | G21: =G18-G20 -> 0
B23: d1 = | C23: =(LN(D18/D19)+(G21+(G19/2))*D20)/(((G19)^(0.5))*(D20^0.5)) -> 
B24: N (d1) = | C24: =NORMSDIST(C23) -> 
B26: d2 = | C26: =C23-((G19^0.5)*(D20^(0.5))) -> 
B27: N (d2) = | C27: =NORMSDIST(C26) -> 
B29: Value per option = | D29: =IF(C12="OFF",((EXP((0-G20)*D20))*D18*C24-D19*(EXP((0-G18)*D20))*C27),0) -> 
B30: Value of all options outstanding = | E30: =D29*E9 -> 
